lending/lending_fUSD_20250418
["ID","MTS","AMOUNT","RATE_DAILY","PERIOD"]
[358346883,1744967440231,-1071.86991515,0.00076711,120]
[358346884,1744967440240,-1071.86991515,0.00076711,120]
[358346885,1744967440250,-1071.86991515,0.00076711,120]
[358346886,1744967440259,-1071.86991515,0.00076711,120]
[358346887,1744967440269,-348.10222007,0.00076711,120]
[358346888,1744967440282,-723.76769508,0.00076711,120]
[358346889,1744967440292,-1071.86991515,0.00076711,120]
[358346890,1744967440302,-1071.86991515,0.00076711,120]
[358346891,1744967440312,-1071.86991515,0.00076711,120]
[358346892,1744967440322,-425.95735103,0.00076711,120]
[358346893,1744967440333,-645.91256412,0.00076711,120]
[358346894,1744967440343,-1071.86991515,0.00076711,120]
[358346895,1744967440352,-1071.86991515,0.00076711,120]
[358346896,1744967440361,-1071.86991515,0.00076711,120]
[358346897,1744967440371,-1071.86991515,0.00076711,120]
[358346898,1744967440380,-1071.86991515,0.00076711,120]
[358346899,1744967440390,-848.45866509,0.00076711,120]
[358346903,1744967442966,-1.6740355,0.00076711,120]
[358346910,1744967445956,-1639.44135828,0.00076654,2]
[358346911,1744967446018,-1277.34725151,0.00076654,2]
[358346912,1744967446089,-2.55273029,0.00076654,2]
[358346913,1744967446127,-8498.05326991,0.00076654,2]
[358346960,1744968308223,3235019.20567613,0.0002,2]
[358346961,1744968308255,1559880.3541,0.0002,2]
[358346962,1744968308893,-663.07337703,0.0002,2]
[358346963,1744968331132,-444.11845027,0.000199,2]
[358346964,1744968331431,-150.00279713,0.000199,2]
[358346965,1744968353418,813.073377,0.000198,2]
[358346966,1744968358238,-162.1417319,0.000199,2]
[358346969,1744968378079,-150.0,0.000199,2]
[358346971,1744968384739,-169.737325,0.000199,2]
[358346973,1744968423858,-178.81361202,0.00019899,2]
[358346974,1744968424866,-121.18638798,0.00019899,2]
[358346975,1744968424892,-57.62722404,0.000199,2]
[358346976,1744968425087,-276.34740189,0.000199,2]
[358346977,1744968426137,-8628.46299862,0.000199,2]
[358346978,1744968426159,-188.36931966,0.000199,2]
[358346979,1744968426181,-500.0,0.00019973,2]
[358346980,1744968426206,-470.69448217,0.00019973,2]
[358346981,1744968432093,-30.22089898,0.00019973,2]
[358346982,1744968432114,-400.50829009,0.00019973,2]
[358346983,1744968434089,-149.66994838,0.00019973,2]
[358346984,1744968434110,-789.41521749,0.00019999,2]
[358346985,1744968435132,-60.58478251,0.00019999,2]
[358346986,1744968435153,-176.29624967,0.00019999,2]
[358346987,1744968435175,-510.55438049,0.0002,2]
[358346988,1744968441153,300.0,0.000195,7]
[358346989,1744968443294,600.0,0.000196,7]
[358346990,1744968445376,900.0,0.000197,7]
[358346991,1744968447475,1200.0,0.000198,7]
[358346992,1744968449560,1500.0,0.000199,7]
[358346993,1744968450091,-361.30710938,0.0002,2]
[358346994,1744968451087,-1635.86859132,0.0002,2]
[358346997,1744968479558,-311.37,0.0002,2]
[358346998,1744968489088,-151.31565442,0.000249,3]
[358347009,1744968498459,-202.0,0.0002,2]
[358347010,1744968527288,-193.18434558,0.0002,2]
[358347011,1744968530600,-333.26644957,0.0002,2]
[358347012,1744968544852,-212.44,0.00019999,2]
[358347013,1744968549919,-204.29699118,0.00019899,2]
[358347014,1744968603529,2000.0,0.0002,4]
[358347015,1744968605400,-128.96945882,0.00019899,2]
[358347016,1744968605422,-64.42054118,0.0001998,2]
[358347019,1744968609551,-175.06522488,0.0001998,2]
[358347020,1744968616982,-169.02537182,0.000199,2]
[358347028,1744968632107,-769.09562818,0.000199,2]
[358347029,1744968632118,-71.88423394,0.0001998,2]
[358347030,1744968632130,-153.16463324,0.0001999,2]
[358347031,1744968632140,-300.0,0.00019999,2]
[358347032,1744968632150,-179.59974788,0.0002,2]
[358347033,1744968632162,-1929.88700768,0.0002,2]
[358347034,1744968632173,-500.0,0.0002,2]
[358347038,1744968638050,-439.62846435,0.0002,2]
[358347039,1744968638061,-1011.86821652,0.0002,2]
[358347040,1744968638072,-1460.41362067,0.0002,2]
[358347041,1744968638106,-363.60613795,0.0002,2]
[358347042,1744968638118,-281.78651295,0.0002,2]
[358347043,1744968638163,-8194.82529356,0.0002,2]
[358347044,1744968638173,-795.83,0.0002,2]
[358347045,1744968638219,-2332.31507349,0.0002,2]
[358347046,1744968638329,-451.15504761,0.0002,2]
[358347047,1744968638340,-2331.42490962,0.0002,2]
[358347221,1744968640147,-1469.52906931,0.0002,2]
[358347253,1744968640474,-1027.8865036,0.0002,2]
[358347254,1744968640530,-396.36999999,0.0002,2]
[358347521,1744968643164,-2451.938759,0.0002,2]
[358347679,1744968645966,-1026.87245864,0.0002,2]
[358347680,1744968646187,-898.41937132,0.0002,2]
[358347681,1744968646199,-7112.7420137,0.0002,2]
[358347682,1744968646243,-2532.6,0.0002,2]
[358347684,1744968693028,-315.44355452,0.000199,2]
[358347686,1744968719578,-349.65,0.000199,2]
[358347690,1744968743874,193.37308347,0.000199,3]
[358347691,1744968746382,-295.87968766,0.000199,2]
[358347695,1744968769224,-295.87968766,0.000199,2]
[358347696,1744968776816,169.737325,0.000198,2]
[358347698,1744968782604,-296.45780896,0.00019899,2]
[358347702,1744968797627,166.54,0.00032,60]
[358347709,1744968946527,183.59146584,0.000198,2]
[358347721,1744969243791,183.59146583,0.000198,2]
[358347723,1744969491419,3214.0,0.00032,60]
[358347724,1744969532360,1859.83322789,0.000198,2]
[358347725,1744969545130,-300.0,0.00019899,2]
[358347726,1744969545152,-137.07575014,0.000199,2]
[358347727,1744969604114,-112.92424986,0.000199,2]
[358347728,1744969604136,-246.5592998,0.000199,2]
[358347729,1744969606458,-37.98024317,0.000199,2]
[358347730,1744969606483,-11686.988,0.000199,2]
[358347731,1744969606507,-545.3732,0.000199,2]
[358347732,1744969606532,-3090.5346,0.000199,2]
[358347733,1744969606557,-6869.164,0.000199,2]
[358347734,1744969606584,-1062.39266382,0.000199,2]
[358347735,1744969606609,-372.72226464,0.000199,2]
[358347736,1744969606635,-3238.8765822,0.000199,2]
[358347737,1744969606660,-508.74136213,0.000199,2]
[358347738,1744969606684,-5443.16981288,0.000199,2]
[358347739,1744969606709,-2251.41973864,0.000199,2]
[358347740,1744969606733,-304.32297454,0.000199,2]
[358347741,1744969606758,-152.6795082,0.000199,2]
[358347742,1744969606782,-161.89882702,0.000199,2]
[358347743,1744969607146,863.61456136,0.000199,2]
[358347744,1744969609208,164.34264901,0.000199,2]
[358347745,1744969623773,-7504.57488733,0.000199,2]
[358347746,1744969631081,-267.53955291,0.00019989,2]
[358347747,1744969634142,-32.46044709,0.00019989,2]
[358347748,1744969634162,-142.13134707,0.0001999,2]
[358347749,1744969638666,-11.97865293,0.0001999,2]
[358347750,1744969638688,-154.11,0.0001999,2]
[358347751,1744969638711,-154.11,0.0001999,2]
[358347752,1744969638732,-154.11,0.0001999,2]
[358347753,1744969638753,-154.11,0.0001999,2]
[358347754,1744969638774,-154.11,0.0001999,2]
[358347755,1744969638794,-154.11,0.0001999,2]
[358347756,1744969638815,-8.39593918,0.0001999,2]
[358347757,1744969640144,-145.71406082,0.0001999,2]
[358347758,1744969640164,-154.11,0.0001999,2]
[358347759,1744969640185,-154.11,0.0001999,2]
[358347760,1744969640206,-154.11,0.0001999,2]
[358347761,1744969640229,-154.11,0.0001999,2]
[358347762,1744969640250,-154.11,0.0001999,2]
[358347763,1744969640272,-154.11,0.0001999,2]
[358347764,1744969640293,-154.11,0.0001999,2]
[358347765,1744969640314,-154.11,0.0001999,2]
[358347766,1744969640334,-154.11,0.0001999,2]
[358347767,1744969640354,-154.11,0.0001999,2]
[358347768,1744969640375,-154.11,0.0001999,2]
[358347769,1744969640398,-154.11,0.0001999,2]
[358347770,1744969640419,-154.11,0.0001999,2]
[358347771,1744969640440,-154.11,0.0001999,2]
[358347772,1744969640461,-154.11,0.0001999,2]
[358347773,1744969640483,-154.11,0.0001999,2]
[358347774,1744969640504,-154.11,0.0001999,2]
[358347775,1744969640525,-154.11,0.0001999,2]
[358347776,1744969640546,-154.11,0.0001999,2]
[358347777,1744969640567,-154.11,0.0001999,2]
[358347778,1744969640588,-154.11,0.0001999,2]
[358347779,1744969640609,-154.11,0.0001999,2]
[358347780,1744969640631,-154.11,0.0001999,2]
[358347781,1744969640654,-154.11,0.0001999,2]
[358347782,1744969640676,-154.11,0.0001999,2]
[358347783,1744969640699,-154.11,0.0001999,2]
[358347784,1744969640721,-154.11,0.0001999,2]
[358347785,1744969640742,-154.11,0.0001999,2]
[358347786,1744969640764,-154.11,0.0001999,2]
[358347787,1744969640785,-154.11,0.0001999,2]
[358347788,1744969640806,-154.11,0.0001999,2]
[358347789,1744969640827,-154.11,0.0001999,2]
[358347790,1744969640848,-154.11,0.0001999,2]
[358347791,1744969640868,-154.11,0.0001999,2]
[358347792,1744969640888,-154.11,0.0001999,2]
[358347793,1744969640909,-154.11,0.0001999,2]
[358347794,1744969640930,-154.11,0.0001999,2]
[358347795,1744969640950,-154.11,0.0001999,2]
[358347796,1744969640972,-154.11,0.0001999,2]
[358347797,1744969640992,-154.11,0.0001999,2]
[358347798,1744969641012,-154.11,0.0001999,2]
[358347799,1744969641034,-154.11,0.0001999,2]
[358347800,1744969641054,-154.11,0.0001999,2]
[358347801,1744969641073,-154.11,0.0001999,2]
[358347802,1744969641093,-154.11,0.0001999,2]
[358347803,1744969641113,-154.11,0.0001999,2]
[358347804,1744969641133,-154.11,0.0001999,2]
[358347805,1744969641153,-154.11,0.0001999,2]
[358347806,1744969641173,-154.11,0.0001999,2]
[358347807,1744969641193,-154.11,0.0001999,2]
[358347808,1744969641216,-154.11,0.0001999,2]
[358347809,1744969641236,-154.11,0.0001999,2]
[358347810,1744969641256,-154.11,0.0001999,2]
[358347811,1744969641276,-154.11,0.0001999,2]
[358347812,1744969641299,-154.11,0.0001999,2]
[358347813,1744969641320,-154.11,0.0001999,2]
[358347814,1744969641342,-154.11,0.0001999,2]
[358347815,1744969641362,-154.11,0.0001999,2]
[358347816,1744969641384,-154.11,0.0001999,2]
[358347817,1744969641404,-154.11,0.0001999,2]
[358347818,1744969641425,-154.11,0.0001999,2]
[358347819,1744969641446,-154.11,0.0001999,2]
[358347820,1744969641467,-154.11,0.0001999,2]
[358347821,1744969641487,-154.11,0.0001999,2]
[358347822,1744969641507,-154.11,0.0001999,2]
[358347823,1744969641528,-303.76983962,0.00019999,2]
[358347824,1744969641595,-104.67993934,0.00019999,2]
[358347825,1744969641617,-677.41634727,0.0002,2]
[358347826,1744969641652,2887.80755814,0.000199,2]
[358347827,1744969650165,-1762.15690063,0.0002,2]
[358347828,1744969669833,-1500.94649244,0.000199,2]
[358347829,1744969669877,-2099.05350756,0.000199,2]
[358347881,1744969832063,-415.32026094,0.000199,2]
[358347882,1744969832118,-518.32839176,0.000199,2]
[358347883,1744969832129,-1716.80885001,0.000199,2]
[358347884,1744969832181,-319.38589175,0.000199,2]
[358347885,1744969832234,-5279.12480554,0.000199,2]
[358347886,1744969832249,-575.7430409,0.000199,2]
[358347887,1744969832261,-671.2107,0.000199,2]
[358347888,1744969832276,-1000.63099496,0.000199,2]
[358347889,1744969832287,-2929.09537272,0.000199,2]
[358347890,1744969832297,-2532.0675,0.000199,2]
[358347891,1744969832308,-202.88198304,0.000199,2]
[358347892,1744969832320,-1878.8282,0.000199,2]
[358347893,1744969832331,-274.26340679,0.0001999,2]
[358347894,1744969832342,-274.26340679,0.0001999,2]
[358347896,1744969832354,-151.4,0.0001999,2]
[358347899,1744969832365,-151.4,0.0001999,2]
[358347901,1744969832377,-151.4,0.0001999,2]
[358347903,1744969832387,-151.4,0.0001999,2]
[358347905,1744969832399,-151.4,0.0001999,2]
[358347908,1744969832410,-151.4,0.0001999,2]
[358347910,1744969832422,-151.4,0.0001999,2]
[358347912,1744969832433,-151.4,0.0001999,2]
[358347914,1744969832444,-151.4,0.0001999,2]
[358347916,1744969832455,-151.4,0.0001999,2]
[358347918,1744969832465,-151.4,0.0001999,2]
[358347920,1744969832475,-151.4,0.0001999,2]
[358347922,1744969832484,-151.4,0.0001999,2]
[358347925,1744969832496,-151.4,0.0001999,2]
[358347929,1744969832507,-151.4,0.0001999,2]
[358347932,1744969832519,-151.4,0.0001999,2]
[358347935,1744969832529,-151.4,0.0001999,2]
[358347938,1744969832540,-151.4,0.0001999,2]
[358347941,1744969832551,-151.4,0.0001999,2]
[358347944,1744969832562,-151.4,0.0001999,2]
[358347946,1744969832574,-151.4,0.0001999,2]
[358347948,1744969832585,-151.4,0.0001999,2]
[358347951,1744969832597,-151.4,0.0001999,2]
[358347953,1744969832608,-151.4,0.0001999,2]
[358347954,1744969832620,-151.4,0.0001999,2]
[358347955,1744969832631,-151.4,0.0001999,2]
[358347956,1744969832642,-151.4,0.0001999,2]
[358347957,1744969832655,-151.4,0.0001999,2]
[358347958,1744969832666,-151.4,0.0001999,2]
[358347959,1744969832677,-151.4,0.0001999,2]
[358347960,1744969832688,-151.4,0.0001999,2]
[358347961,1744969832699,-151.4,0.0001999,2]
[358347962,1744969832710,-151.4,0.0001999,2]
[358347963,1744969832721,-151.4,0.0001999,2]
[358347964,1744969832731,-151.4,0.0001999,2]
[358347965,1744969832742,-151.4,0.0001999,2]
[358347966,1744969832753,-151.4,0.0001999,2]
[358347967,1744969832764,-151.4,0.0001999,2]
[358347968,1744969832776,-151.4,0.0001999,2]
[358347969,1744969832788,-151.4,0.0001999,2]
[358347970,1744969832799,-151.4,0.0001999,2]
[358347971,1744969832811,-151.4,0.0001999,2]
[358347972,1744969832822,-151.4,0.0001999,2]
[358347973,1744969832833,-151.4,0.0001999,2]
[358347974,1744969832844,-151.4,0.0001999,2]
[358347975,1744969832854,-151.4,0.0001999,2]
[358347976,1744969832864,-151.4,0.0001999,2]
[358347977,1744969832875,-151.4,0.0001999,2]
[358347978,1744969832886,-151.4,0.0001999,2]
[358347979,1744969832898,-151.4,0.0001999,2]
[358347980,1744969832910,-151.4,0.0001999,2]
[358347981,1744969832922,-151.4,0.0001999,2]
[358347982,1744969832932,-151.4,0.0001999,2]
[358347983,1744969832942,-151.4,0.0001999,2]
[358347984,1744969832952,-151.4,0.0001999,2]
[358347985,1744969832962,-151.4,0.0001999,2]
[358347986,1744969832972,-151.4,0.0001999,2]
[358347987,1744969832983,-151.4,0.0001999,2]
[358347988,1744969832994,-151.4,0.0001999,2]
[358347989,1744969833006,-151.4,0.0001999,2]
[358347990,1744969833019,-151.4,0.0001999,2]
[358347991,1744969833030,-151.4,0.0001999,2]
[358347992,1744969833041,-151.4,0.0001999,2]
[358347993,1744969833052,-151.4,0.0001999,2]
[358347994,1744969833062,-151.4,0.0001999,2]
[358347995,1744969833072,-151.4,0.0001999,2]
[358347996,1744969833083,-151.4,0.0001999,2]
[358347997,1744969833094,-151.4,0.0001999,2]
[358347998,1744969833105,-151.4,0.0001999,2]
[358347999,1744969833116,-151.4,0.0001999,2]
[358348000,1744969833127,-151.4,0.0001999,2]
[358348001,1744969833139,-151.4,0.0001999,2]
[358348002,1744969833152,-300.0,0.00019999,2]
[358348003,1744969833162,-18975.47770673,0.0002,2]
[358348004,1744969833176,-1280.86813107,0.0002,2]
[358348005,1744969833190,-787.72537109,0.0002,2]
[358348006,1744969833204,-367.35042861,0.0002,2]
[358348007,1744969833218,-7584.80622634,0.0002,2]
[358348009,1744969838159,-611.70497818,0.000199,2]
[358348010,1744969838215,-953.82884201,0.000199,2]
[358348011,1744969838279,-603.54117705,0.000199,2]
[358348012,1744969838289,-784.6819466,0.0002,2]
[358348013,1744969838303,-413.0,0.0002,2]
[358348014,1744969838337,-2813.57906416,0.0002,2]
[358348015,1744969838352,-590.08296798,0.0002,2]
[358348016,1744969838366,-1453.84773269,0.0002,2]
[358348017,1744969838379,-2547.105,0.0002,2]
[358348018,1744969838402,-824.93485951,0.0002,2]
[358348019,1744969838416,-20000.0,0.0002,2]
[358348020,1744969838428,-595.92817399,0.0002,2]
[358348021,1744969838441,-626.36968683,0.0002,2]
[358348194,1744969840244,-654.839996,0.0002,2]
[358348206,1744969840300,-938.06921056,0.0002,2]
[358348209,1744969840313,-867.89771197,0.0002,2]
[358348226,1744969840411,-494.99999995,0.0002,2]
[358348229,1744969840423,-6492.98264759,0.0002,2]
[358348252,1744969840527,-774.20360334,0.0002,2]
[358348257,1744969840542,-602.58221867,0.0002,2]
[358348266,1744969840583,-13554.62348864,0.0002,2]
[358348269,1744969840594,-1028.93609989,0.0002,2]
[358348272,1744969840605,-682.60523184,0.0002,2]
[358348275,1744969840615,-1034.355,0.0002,2]
[358348333,1744969840904,-56.53460309,0.0002,2]
[358348337,1744969840915,-850.58012222,0.0002,2]
[358348340,1744969840926,-3756.56040363,0.0002,2]
[358348344,1744969840937,-490.0,0.0002,2]
[358348355,1744969840987,-6223.95118919,0.0002,2]
[358348358,1744969840998,-500.0,0.0002,2]
[358348361,1744969841009,-577.46205938,0.0002,2]
[358348602,1744969843107,-2066.8021701,0.0002,2]
[358348604,1744969843118,-471.928098,0.0002,2]
[358348609,1744969843163,-592.26600014,0.0002,2]
[358348622,1744969843278,-2490.6707393,0.0002,2]
[358348624,1744969843290,-2903.04000028,0.0002,2]
[358348627,1744969843301,-485.305,0.0002,2]
[358348629,1744969843313,-1499.756,0.0002,2]
[358348631,1744969843325,-1849.17996934,0.0002,2]
[358348633,1744969843338,-506.62630079,0.0002,2]
[358348637,1744969843351,-352.72799642,0.0002,2]
[358348639,1744969843364,-2513.09890421,0.0002,2]
[358348791,1744969844808,-19852.51822778,0.0002,2]
[358348793,1744969844826,-631.44,0.0002,2]
[358348796,1744969844837,-1356.4999996,0.0002,2]
[358348798,1744969844848,-10937.10514328,0.0002,2]
[358348800,1744969844859,-9500.48560775,0.0002,2]
[358348802,1744969844870,-450.0,0.0002,2]
[358348923,1744969846137,-1417.56443875,0.0002,2]
[358348927,1744969846149,-1753.10207442,0.0002,2]
[358348947,1744969846248,-1526.77504163,0.0002,2]
[358348993,1744969846469,-8569.6,0.0002,2]
[358348996,1744969846480,-1681.05,0.0002,2]
[358348999,1744969846491,-251.10073731,0.0002,2]
[358349003,1744969846502,-467.96961399,0.0002,2]
[358349021,1744969846595,-320.04280838,0.0002,2]
[358349024,1744969846606,-532.85299582,0.0002,2]
[358349027,1744969846629,-113336.85086669,0.0002,2]
[358349030,1744969846644,-499.72395068,0.0002,2]
[358349032,1744969846656,-4943.96434183,0.0002,2]
[358349121,1744970125101,-200.0,0.0001984,2]
[358349122,1744970125149,-300.0,0.00019899,2]
[358349123,1744970125199,-300.0,0.00019899,2]
[358349124,1744970125244,-100200.0,0.000199,2]
[358349128,1744970155153,250.0,0.00017,2]
[358349129,1744970156269,300.0,0.00019,2]
[358349132,1744970172914,-315.07197467,0.000198,2]
[358349134,1744970279129,-328.2663679,0.000198,2]
[358349137,1744970375046,-174.09543382,0.00019799,2]
[358349138,1744970375069,-3174.34716502,0.000198,2]
[358349139,1744970375092,-351878.7981,0.000198,2]
[358349140,1744970375117,-300.0,0.00019899,2]
[358349141,1744970375139,-154700.39098,0.000199,2]
[358349142,1744970375161,-311.74397243,0.000199,2]
[358349143,1744970375184,-200.0,0.000199,2]
[358349144,1744970375207,-1995.71641524,0.000199,2]
[358349145,1744970375227,-248.48150976,0.000199,2]
[358349146,1744970375249,-202.88198302,0.000199,2]
[358349147,1744970375270,-667.08732996,0.000199,2]
[358349148,1744970375294,-1981.74801639,0.000199,2]
[358349149,1744970375316,-5003.04992488,0.000199,2]
[358349150,1744970375337,-296.45780896,0.00019973,2]
[358349151,1744970375359,-295.87968766,0.00019973,2]
[358349152,1744970375381,-500.0,0.00019973,2]
[358349153,1744970375405,-4260792.69696776,0.0002,2]
[358349154,1744970375430,-281.59074397,0.0002,2]
[358349157,1744970469104,22570.3333,0.000197,2]
[358349158,1744970554104,32659.0,0.00032,60]
[358349160,1744970622307,-337.0,0.0002,4]
[358349163,1744970755272,-438.58255929,0.0002,4]
[358349164,1744970827127,-848.67212444,0.0002,4]
[358349165,1744970836098,-375.74531627,0.0002,4]
[358349166,1744970836117,-250.0,0.00020395,2]
[358349167,1744970836136,-300.0,0.0002089,2]
[358349168,1744970836157,-568.84170611,0.000219,2]
[358349169,1744970846304,-30.24155693,0.000219,2]
[358349170,1744970846325,-250.0,0.00022,2]
[358349171,1744970846345,-250.0,0.00022,2]
[358349172,1744970846365,-181.74,0.00022716,2]
[358349173,1744970846385,-150.0,0.00022988,5]
[358349174,1744970846409,-257.100718,0.000248,7]
[358349175,1744970846429,-257.100718,0.000248,7]
[358349176,1744970846449,-152.067872,0.000249,7]
[358349177,1744970846471,-151.0,0.000249,7]
[358349178,1744970846491,-257.100718,0.000249,7]
[358349179,1744970846512,-257.100718,0.000249,7]
[358349180,1744970846533,-606.039713,0.00026963,2]
[358349181,1744970846554,-250.0,0.0002736,2]
[358349182,1744970846578,-300.0,0.00028433,2]
[358349183,1744970846599,-1034.19429766,0.00028434,2]
[358349184,1744970846622,-300.0,0.00028434,2]
[358349185,1744970846644,-6511.27071233,0.00028435,2]
[358349186,1744970848534,-511.75777478,0.00028435,2]
[358349187,1744970853091,-994.51919511,0.00028435,2]
[358349196,1744971032582,-246.95838031,0.00022988,5]
[358349198,1744971032592,-250.0,0.00025287,2]
[358349199,1744971032601,-250.0,0.00025712,2]
[358349201,1744971032611,-250.0,0.00028137,2]
[358349203,1744971032623,-300.0,0.00028434,2]
[358349205,1744971032632,-15882.45231778,0.00028435,2]
[358349207,1744971032641,-10746.1172067,0.00029109,2]
[358349209,1744971032650,-4973.1775128,0.00029129,2]
[358349211,1744971032660,-286.64,0.00029149,2]
[358349213,1744971032669,-546.5,0.00029939,2]
[358349215,1744971032680,-1041.82,0.00030649,2]
[358349217,1744971032689,-420.0,0.00030828,2]
[358349218,1744971032699,-439.0114981,0.000309,2]
[358349219,1744971032708,-508.46192473,0.00031106,4]
[358349220,1744971032717,-377.05,0.00031116,2]
[358349221,1744971032726,-311.74397242,0.0003155,2]
[358349222,1744971032735,-168.08,0.00032877,30]
[358349223,1744971032743,-587.0,0.00033423,3]
[358349224,1744971032754,-150.0,0.00034548,10]
[358349225,1744971032763,-823.0,0.00036238,3]
[358349226,1744971032771,-1000.0,0.00038746,2]
[358349227,1744971032781,-1152.0,0.00039289,5]
[358349228,1744971032791,-161.49,0.00039479,2]
[358349229,1744971032801,-250.0,0.00039809,2]
[358349230,1744971032811,-250.0,0.00039876,2]
[358349231,1744971032820,-161.49,0.00039877,30]
[358349232,1744971032830,-500.0,0.00039999,120]
[358349233,1744971032839,-156.66,0.00040168,2]
[358349234,1744971032848,-286.64,0.00040808,2]
[358349235,1744971032857,-6570.27,0.00040897,2]
[358349236,1744971032865,-151.0,0.00041167,14]
[358349237,1744971032874,-250.0,0.00041461,120]
[358349238,1744971032883,-272.46,0.00042122,120]
[358349239,1744971032892,-332.29,0.00042408,2]
[358349240,1744971032901,-659.0,0.00042597,5]
[358349241,1744971032910,-550.579,0.00042792,65]
[358349242,1744971032919,-171.747,0.00042792,65]
[358349243,1744971032928,-1287.62319642,0.000429,17]
[358349244,1744971032937,-212.44,0.00043083,120]
[358349245,1744971032946,-311.74397242,0.000432,10]
[358349246,1744971032955,-1000.0,0.00043589,2]
[358349247,1744971032964,-518.64,0.00043644,2]
[358349248,1744971032973,-19165.51,0.00043865,2]
[358349249,1744971032982,-8500.95,0.00044319,2]
[358349250,1744971032991,-557.41,0.00044622,2]
[358349251,1744971033000,-332.29,0.00044672,2]
[358349252,1744971033009,-3584.49436973,0.000449,7]
[358349253,1744971033019,-7055.25095698,0.00045,120]
[358349254,1744971033028,-151.0,0.00045,120]
[358349255,1744971033037,-151.0,0.00045,120]
[358349256,1744971033046,-161.49,0.00046101,120]
[358349257,1744971033056,-332.29,0.00046935,2]
[358349258,1744971033065,-272.46,0.00047387,120]
[358349259,1744971033075,-1000.0,0.00048432,2]
[358349260,1744971033084,-14937.02050407,0.00048889,120]
[358349261,1744971033093,-162.351546,0.00048889,14]
[358349262,1744971033102,-701.07839585,0.00049153,120]
[358349263,1744971033112,-701.07839585,0.00049153,120]
[358349264,1744971033121,-701.07839585,0.00049153,120]
[358349265,1744971033130,-701.07839585,0.00049153,120]
[358349266,1744971033140,-701.07839585,0.00049153,120]
[358349267,1744971033148,-701.07839585,0.00049153,120]
[358349268,1744971033156,-701.07839585,0.00049153,120]
[358349269,1744971033165,-701.07839585,0.00049153,120]
[358349270,1744971033174,-701.07839585,0.00049153,120]
[358349271,1744971033183,-19999.99,0.00049154,2]
[358349272,1744971033192,-2035.63,0.00049154,2]
[358349273,1744971033202,-6473.16,0.00049154,45]
[358349274,1744971033212,-3362.49,0.00049154,2]
[358349275,1744971033221,-332.29,0.00049199,2]
[358349276,1744971033231,-350.69074986,0.0005,120]
[358349277,1744971033241,-500.0,0.00050117,10]
[358349278,1744971033250,-332.29,0.00051463,2]
[358349279,1744971033261,-576.08835279,0.00052,30]
[358349280,1744971033270,-519.836056,0.00052,67]
[358349281,1744971033280,-1373.31392285,0.00052125,120]
[358349282,1744971033289,-200.0,0.00052125,30]
[358349283,1744971033299,-200.0,0.00052125,30]
[358349284,1744971033308,-200.0,0.00052125,30]
[358349285,1744971033318,-200.0,0.00052125,30]
[358349286,1744971033328,-200.0,0.00052125,30]
[358349287,1744971033337,-200.0,0.00052125,30]
[358349288,1744971033346,-200.0,0.00052125,30]
[358349289,1744971033356,-200.0,0.00052125,30]
[358349290,1744971033366,-200.0,0.00052125,30]
[358349291,1744971033376,-200.0,0.00052125,30]
[358349292,1744971033386,-200.0,0.00052125,30]